Cogmind - Beta 15 @@@ ROGUE MODE // 2025.07.05 @ 23:06:48 Player: Minty Result: Destroyed by G-34 Mercenary with Small Laser Performance ------------- Evolutions (0) 0 Regions Visited (1) 200 Robots Destroyed (7) 35 Value Destroyed (119) 119 Prototype IDs (3) 60 Alien Tech Used (0) 0 Bonus (0) 0 TOTAL SCORE: 414 Bonus ------- None Cogmind --------- Core Integrity 0/250 Matter 284/300 Energy 92/100 System Corruption 0% Temperature Cool (6) Movement Treading (160) Location -10/Materials Parts ------- > --- POWER (1) -------- (None) > --- PROPULSION (2) --- Light Treads Light Treads > --- UTILITY (2) ------ High-capacity Storage Unit Visual Processing Unit > --- WEAPON (2) ------- (None) > --- INVENTORY (20) --- Light Ion Engine Light Ion Engine Light Ion Engine Light Treads Light Treads Light Treads Light Treads Light Treads Light Treads Wheel Compact Wheel Small Storage Unit High-capacity Matter Pod (48) Targeting Computer Propulsion Shielding Propulsion Shielding Propulsion Shielding Light Assault Rifle Peak State ------------ > --- POWER ------------ Ion Engine > --- PROPULSION ------- Aluminum Leg Aluminum Leg > --- UTILITY ---------- High-capacity Storage Unit Visual Processing Unit > --- WEAPON ----------- EM Pulse Gun EM Pulse Gun > --- INVENTORY -------- Light Ion Engine Light Ion Engine Light Ion Engine Light Treads Light Treads Light Treads Light Treads Light Treads Light Treads Light Treads Light Treads Wheel Compact Wheel Small Storage Unit High-capacity Matter Pod Targeting Computer Propulsion Shielding Propulsion Shielding Propulsion Shielding Light Assault Rifle [Rating: 10] Favorites ----------- Power Ion Engine Engine Ion Engine Propulsion Aluminum Leg Treads Light Treads Leg Aluminum Leg Utility High-capacity Storage Unit Storage High-capacity Storage Unit Processor Visual Processing Unit Weapon EM Pulse Gun Energy Gun EM Pulse Gun Ballistic Gun Light Assault Rifle Build | -11 -10 ------- Run | Yrd Mat Slots Evolved . | . . Power . | . . Propulsion . | . . Utility . | . . Weapon . | . . Parts Attached 5 | . 5 Power . | . . Engine . | . . Core . | . . Reactor . | . . Propulsion 2 | . 2 Treads 2 | . 2 Leg . | . . Wheel . | . . Hover . | . . Flight . | . . Utility 2 | . 2 Device . | . . Storage 1 | . 1 Processor 1 | . 1 Hackware . | . . Protection . | . . Artifact . | . . Weapon 1 | . 1 Energy Gun . | . . Energy Cannon . | . . Ballistic Gun 1 | . 1 Ballistic Cannon . | . . Launcher . | . . Special Weapon . | . . Impact Weapon . | . . Slashing Weapon . | . . Piercing Weapon . | . . Special Melee Weapon . | . . Unidentified Prototypes . | . . Parts Lost 5 | . 5 Power 1 | . 1 Propulsion 2 | . 2 Utility . | . . Weapon 2 | . 2 Highest Loss Streak 5 | . 5 To Critical Strikes . | . . Average Backups 16 | . 16 Power 2 | . 2 Propulsion 9 | . 9 Utility 4 | . 4 Weapon . | . . Tool/Special . | . . Unused Backups 23 | . 23 Power 4 | . 4 Propulsion 10 | . 10 Utility 7 | . 7 Weapon 2 | . 2 Tool/Special . | . . Average Slot Usage (%) 91 | . 91 Engine 13 | . 13 Leg 27 | . 27 Storage 14 | . 14 Processor 7 | . 7 Energy Gun 25 | . 25 Peak Build Rating 10 | . 10 Average Rating 8 | . 8 On Entrance 6 | 6 6 Naked Turns . | . . Heaviest Build 54 | 14 54 Greatest Support 40 | 20 40 Greatest Overweight (x) 2 | . 2 Average Overweight (x) 1 | . 1 Largest Inventory Capacity 20 | . 20 Average Capacity 19 | . 19 Most Carried 20 | . 20 Average Carried 16 | . 16 Final Capacity 20 | 8 20 Final Carried 18 | 6 18 Class Distribution -------------------- 100% | Mutant Dominant Class ---------------- Mutant | -10/Materials Resources | -11 -10 ----------- Run | Yrd Mat Matter Collected 263 | 192 71 Remotely . | . . Salvage Created 165 | . 165 Parts 15 | . 15 Haulers Intercepted . | . . Recyclers Shooed . | . . Parts Field Recycled . | . . Retrieved Matter . | . . Parts Self-Destructed . | . . Prevented . | . . Kills | -11 -10 ------- Run | Yrd Mat Combat Hostiles Destroyed 2 | . 2 Guns 2 | . 2 Classes Destroyed 5 | . 5 Worker 2 | . 2 Tunneler 1 | . 1 Operator 1 | . 1 Watcher 1 | . 1 Grunt 2 | . 2 Best Kill Streak 2 | . 2 Combat Bots Only 1 | . 1 Max Kills in Single Turn 1 | . 1 Gunslinging . | . . Exploded . | . . Melee . | . . Uniques/NPCs Destroyed . | . . Combat | -11 -10 -------- Run | Yrd Mat Hostile Shots Fired 78 | . 78 Missed 18 | . 18 Hits 60 | . 60 Projectile 60 | . 60 Damage Taken 743 | . 743 Core 255 | . 255 Absorbed by Shields . | . . Core Remaining (%) 100 | 100 . Volleys Fired 23 | . 23 Largest 2 | . 2 Hottest 80 | . 80 Shots Fired 38 | . 38 Gun 38 | . 38 Cannon . | . . Launcher . | . . Special . | . . Kinetic 11 | . 11 Thermal . | . . Explosive . | . . Electromagnetic 27 | . 27 Robot Hit Streak 6 | . 6 Robot Miss Streak 5 | . 5 Penetration Max . | . . Secondary Targets 1 | . 1 Max Gunslinging Chain 1 | . 1 Shots Hit Robots 22 | . 22 Core Hits 9 | . 9 Critical Kills . | . . Critical Parts Destroyed . | . . Critical Strikes . | . . Melee Attacks . | . . Impact . | . . Slashing . | . . Piercing . | . . Sneak Attacks . | . . Combat Hostiles . | . . Follow-up Attacks . | . . Damage Inflicted 307 | . 307 Guns 269 | . 269 Cannons . | . . Explosions 35 | . 35 Melee . | . . Ramming 3 | . 3 Kinetic 66 | . 66 Thermal 35 | . 35 Explosive . | . . Electromagnetic 203 | . 203 Impact . | . . Slashing . | . . Piercing . | . . Highest Corruption . | . . Average Corruption . | . . Corruption Purged . | . . Corruption Blocked . | . . Overload Shots . | . . Overflow Damage . | . . Projectiles . | . . Explosions . | . . Melee . | . . Knockbacks . | . . Impact . | . . Kinetic . | . . Secondary . | . . Self-Inflicted Damage . | . . Shots . | . . Rammed 1 | . 1 Targets Rammed 1 | . 1 Kicked . | . . Crushed . | . . Highest Temperature 271 | . 271 Average Temperature 105 | . 105 Received Heat Transfer 408 | . 408 Siege Activations . | . . Martial Activations . | . . Shielding Activations . | . . Robots Disrupted . | . . Combat Hostiles . | . . Robots Corrupted . | . . Combat Hostiles . | . . Parts Fried 1 | . 1 Impact Corruptions . | . . Robots Melted . | . . Combat Hostiles . | . . Parts Melted . | . . Heat Transferred . | . . Parts Sabotaged . | . . Parts Stolen . | . . Parts Stripped . | . . Power Chain Reactions 1 | . 1 Alert | -11 -10 ------- Run | Yrd Mat Maximum Alert Level . | . . Low Security (%) 100 | . 100 Level 1 . | . . Level 2 . | . . Level 3 . | . . Level 4 . | . . Level 5 . | . . High Security . | . . Max Security . | . . Peak Influence 27 | . 27 Initial . | . . Average 2 | . 2 Influence Increases 88 | . 88 Destroy 0b10 Robot/C 40 | . 40 Destroy 0b10 Robot/NC 25 | . 25 Destroy Leader 2 | . 2 Successful Hack 5 | . 5 Disable Machine 15 | . 15 Destroy Structure 1 | . 1 Influence Decreases 88 | . 88 Time Decay 59 | . 59 Lost Part 29 | . 29 Squads Dispatched 1 | . 1 Investigation . | . . Extermination . | . . Reinforcement 1 | . 1 Assault . | . . Garrison . | . . Intercept . | . . Searches Triggered . | . . Construction Impeded . | . . Haulers Reinforced . | . . Active Scanning Responses . | . . Cargo Convoy Interrupts . | . . Stealth | -11 -10 --------- Run | Yrd Mat Distress Signals . | . . Communications Jammed . | . . Distress Signals . | . . Times Spotted 8 | . 8 Peak Tracking Total 4 | . 4 Tactical Retreats . | . . Traps | -11 -10 ------- Run | Yrd Mat Traps Triggered . | . . Indirectly . | . . Trap Hack Attempts . | . . Triggered . | . . Disarmed . | . . Reprogrammed . | . . Reused . | . . Traps Extracted . | . . Installed . | . . Triggered . | . . Machines | -11 -10 ---------- Run | Yrd Mat Machines Disabled 1 | . 1 Max in Single Turn 1 | . 1 Machines Repaired . | . . Machines Dismantled . | . . Machines Sabotaged . | . . Overloaded Fab Kills . | . . Hacking | -11 -10 --------- Run | Yrd Mat Machines Accessed 2 | . 2 Terminals 2 | . 2 Fabricators . | . . Repair Stations . | . . Recycling Units . | . . Scanalyzers . | . . Garrison Access . | . . Total Hacks 4 | . 4 Successful 2 | . 2 Failed 2 | . 2 Catastrophic 1 | . 1 Database Lockouts . | . . Manual . | . . Terminals 4 | . 4 Fabricators . | . . Repair Stations . | . . Recycling Units . | . . Scanalyzers . | . . Garrison Access . | . . Terminal Hacks 2 | . 2 Prototype ID Bank 1 | . 1 Transport Status 1 | . 1 Fabricator Hacks . | . . Repair Station Hacks . | . . Recycling Unit Hacks . | . . Scanalyzer . | . . Garrison Access Hacks . | . . Unauthorized Hacks . | . . Terminals . | . . Fabricators . | . . Repair Stations . | . . Recycling Units . | . . Scanalyzers . | . . Garrison Access . | . . Data Cores Recovered 1 | . 1 Used . | . . Hacking Detections 1 | . 1 Full Trace Events . | . . Feedback Events . | . . Feedback Blocked . | . . Robot Schematics Acquired . | . . Robots Built . | . . Authchips . | . . Time . | . . Total Robot Build Rating . | . . Part Schematics Acquired . | . . Parts Built . | . . Authchips . | . . Time . | . . Total Part Build Rating . | . . Parts Repaired . | . . Time . | . . Parts Recycled . | . . Recycled Matter . | . . Retrieved Matter . | . . Retrieved Components . | . . Parts Scanalyzed . | . . Part Schematics Acquired . | . . Parts Damaged . | . . Bothacking | -11 -10 ------------ Run | Yrd Mat Used RIF Installer . | . . Robots Hacked . | . . Non-combat . | . . Combat . | . . Robot Hacks Applied . | . . Relay Couplers Released . | . . Fabnet Peak Effective % . | . . Robots Rewired . | . . Allies Hacked . | . . Hacks Repelled . | . . Allies | -11 -10 -------- Run | Yrd Mat Total Allies . | . . Largest Group . | . . Highest-Rated Group . | . . Highest-Rated Ally . | . . Total Orders . | . . Ally Attacks . | . . Total Damage . | . . Kills . | . . Allies Corrupted . | . . Allies Melted . | . . Intel | -11 -10 ------- Run | Yrd Mat Active Infowar (turns) 282 | . 282 Optics 282 | . 282 Robot Analysis Total . | . . Derelict Logs Recovered . | . . Drone Launches . | . . Drone Recoveries . | . . Exploration | -11 -10 ------------- Run | Yrd Mat Turns Passed 498 | . 498 Spaces Moved 171 | 1 170 Core . | . . Treads 7 | . 7 Legs 164 | 1 163 Wheels . | . . Hover . | . . Flight . | . . Fastest Speed 120 | 120 120 Average Speed 242 | 120 243 Slowest Speed 260 | 120 260 Overloaded Moves . | . . Propulsion Burnouts . | . . Robots Hopped . | . . Potential Cave-ins . | . . Cave-ins Triggered . | . . Exploration Rate (%) 19 | 2 36 Regions Visited 1 Branch Regions . Pre-discovered Areas . | . . Known Exits Taken . | . . Unknown Exits Taken 1 | 1 . Scrap Searched . | . . Spaces Dug . | . . Terrain Destroyed 1 | . 1 Melee . | . . Projectile . | . . AOE 1 | . 1 Terrain Rammed . | . . Walls Destroyed . | . . Machines Disabled . | . . Actions | -11 -10 --------- Run | Yrd Mat Total 218 | . 218 Wait 4 | . 4 Move 170 | . 170 Hop . | . . Pick Up 13 | . 13 Fast Attach 2 | . 2 Attach 3 | . 3 Detach 2 | . 2 Swap . | . . Drop . | . . Fire 23 | . 23 Melee . | . . Ram . | . . Kick . | . . Crush 1 | . 1 Escape Stasis . | . . Rewire . | . . Trap . | . . Miscellaneous . | . . Route ------- -11/Scrapyard -10/Materials (discovered 2 exits: [*Mat] / [*Min]) History --------- Turn | Location | Event 1 | -11/Scrapyard | Discovered new exit (range 0) 1 | -11/Scrapyard | Entered Materials 236 | -10/Materials | Discovered new exit (range 4) 314 | -10/Materials | Build established: Mutant 401 | -10/Materials | Discovered new exit (range 7) 464 | -10/Materials | Core integrity fell below 50% 486 | -10/Materials | Core integrity fell below 20% 499 | -10/Materials | Destroyed by G-34 Mercenary with Small Laser Last Messages --------------- 00437_ R-06 Scavenger collects Heat Sink. 00438_ K-01 Serf collects debris. 00441_ R-06 Scavenger collects Corrupted Ion Engine. 00441_ K-01 Serf collects debris. 00447_ EM Pulse Gun destroyed. 00449_ K-01 Serf collects debris. 00454_ K-01 Serf destroyed. 00456_ K-01 Serf collects debris. 00457_ G-34 Mercenary IFF system glitched. 00459_ Heat Sink fried. 00459_ G-34 Mercenary destroyed. 00459_ Switching to secondary target: G-34 Mercenary. 00460_ K-01 Serf collects debris. 00462_ EM Pulse Gun destroyed. 00463_ K-01 Serf collects debris. 00478_ Aluminum Leg destroyed. 00484_ Ion Engine destroyed. 00487_ Slammed into G-34 Mercenary. 00488_ R-06 Scavenger collects Corrupted Sml. Laser. 00492_ K-01 Serf collects debris. Map ----- +----------------------------------------------------+ | | | | | | | | | | | ???????????????????????????????????????? | | ???????????????????????????????????????? | | ???????????????????????????????????????? | | ???????????????????????????????????????? | | ???????????????????????????????????????? | | ???????????????????????????????????????? | | ???????????????????????????????????????? | | ???????????????????????????????????????? | | ???????????????????????????????????????? | | ???????????????????????????????????????? | | ???????????????????????????????????????? | | ???????????????????????????????????????? | | ???????????????????????????????????????? | | ######+##?????????????#####????????????? | | # #########?????# #????????????? | | #^^ # """ #?????# < #????????????? | | + # "R" #?????# #????????????? | | # + " " #?????# #????????????? | | # # #?????# #????????????? | | # # #?????# #????????????? | | #/### ############### @#????????????? | | ###########??? | | # #??? | | """" # #??? | | """" * ############### # """ #??? | | """" !|#?????????????# gg# """"" #??? | | #?????????????# g """"" ???? | | #?????????????# # """""????? | | #?????????????# # """ ????? | | #????????????^% # ???? | | #?????????? ###########??? | | #????????^ // #????????????? | | #########??????# ^// #????????????? | | ???????????????# ^ // #????????????? | | ???????????????# % #????????????? | | ?????????????? %* u #????????????? | | ????????????? #????????????? | | ???????????? #????????????? | | ????????????#### ?????????????? | | ???????????????###+#### ?????????????? | | ??????????????????????# ?????????????? | | ??????????????????????# ?????????????? | | ??????????????????????# ?????????????? | | ??????????????????????? ?????????????? | | ??????????????????????? ?????????????? | +----------------------------------------------------+ Best States ------------- Heat Dissipation 25 Energy Generation 10 Energy Capacity 250 Matter Stores 300 Matter Capacity 300 Sight Range 18 Terrain Scan Density 10 Evasion (%) 50 Recoil Reduction 2 Item Schematics ----------------- None Robot Schematics ------------------ None Fabricated ------------ Nothing Repaired ---------- Nothing Alien Tech Used ----------------- None Achievements -------------- None Challenges ------------ None Game ------ Seed StrikeAuthchipArmor Manual? 0 Play Time 00:03:03 Cumulative 1141.3 hours Start 2025.07.05 @ 23:02:57 End 2025.07.05 @ 23:06:48 Sessions 1 Manual Loads 0 Difficulty Rogue Special Mode None Game No. 1400 Rogue 1116 Adventurer 124 Explorer 160 Win Type - Total 50 Types 36/0/8/4/1/0/0/1/0/0 Lore% 92 Gallery% 88 Achievement% 81 Wizard Run 0 Options --------- Layout 0 ASCII 0 Keyboard 1 Movement Numpad Keybinds 0 Fullscreen 2 Font 18/X11 Map View 76x50 Zoom Use 0% Tactical HUD 1 Map Filters NONE Filters NONE Steam 1 RUN: 5eb75ae7-de2f-4d9a-93e5-4092220c731d